bitfinex-derivatives/quotes_SOLF0:USTF0_20241017
["timestamp","ask_amount","ask_price","bid_price","bid_amount"]
[1729144684509,8.5122,152.83,152.78,3.273]
[1729144684805,5.24,152.86,152.78,14.15]
[1729144685012,3.2716,152.86,152.79,5.24]
[1729144685209,5.24,152.88,152.8,14.15]
[1729144685503,3.2713,152.87,152.82,3.2721]
[1729144685706,3.2713,152.87,152.82,6.62366261]
[1729144685906,5.24,152.88,152.82,6.62366261]
[1729144686711,3.2715,152.86,152.82,6.62366261]
[1729144686903,5.24,152.88,152.82,3.35156261]
[1729144687103,5.24,152.88,152.81,1.3851]
[1729144687311,8.511,152.88,152.81,1.3851]
[1729144687910,8.511,152.88,152.83,3.2718]
[1729144688113,5.24,152.88,152.83,3.22883751]
[1729144688317,3.2714,152.86,152.81,1.3851]
[1729144688608,14.15,152.87,152.82,3.32996368]
[1729144688813,3.272,152.84,152.78,5.24]
[1729144689312,3.2717,152.85,152.8,3.2725]
[1729144689614,3.2717,152.85,152.78,5.24]
[1729144690013,14.15,152.87,152.8,3.2726]
[1729144690311,3.2719,152.84,152.8,3.2726]
[1729144690912,3.2717,152.85,152.81,3.2725]
[1729144692513,14.15,152.85,152.78,3.273]
[1729144692713,14.15,152.83,152.76,1.3715]
[1729144692914,19.39,152.83,152.76,1.3715]
[1729144693220,3.2726,152.81,152.76,1.3715]
[1729144694417,3.2726,152.81,152.77,3.2733]
[1729144695820,3.2726,152.81,152.76,4.645]
[1729144700524,5.24,152.83,152.76,1.3715]
[1729144700725,8.5121,152.83,152.76,1.3715]
[1729144701625,8.5121,152.83,152.78,3.273]
[1729144702623,3.2721,152.83,152.76,1.3715]
[1729144703527,3.2721,152.83,152.78,3.2731]
[1729144705621,19.39,152.85,152.76,1.3715]
[1729144705816,12.3226,152.81,152.77,3.2732]
[1729144706016,9.05,152.79,152.75,1.423]
[1729144706229,9.05,152.76,152.74,3.32406308]
[1729144706524,9.05,152.76,152.71,5.18]
[1729144706726,9.05,152.76,152.7,9.05]
[1729144707131,12.3236,152.76,152.71,3.2746]
[1729144707330,12.3236,152.76,152.71,12.3246]
[1729144707635,12.3236,152.76,152.71,9.05]
[1729144707932,3.2736,152.76,152.69,23.536]
[1729144708527,3.2736,152.76,152.72,3.2744]
[1729144708732,3.2734,152.77,152.72,3.2744]
[1729144714536,14.16,152.78,152.69,9.376]
[1729144715137,14.16,152.78,152.69,23.536]
[1729144715437,3.2736,152.76,152.72,3.2744]
[1729144717753,3.2735,152.77,152.73,3.2742]
[1729144717943,3.2735,152.77,152.73,6.5637714]
[1729144718245,3.2735,152.77,152.73,3.2742]
[1729144718446,3.2735,152.77,152.72,3.2743]
[1729144719250,3.2739,152.75,152.71,3.2746]
[1729144720950,14.16,152.78,152.69,9.376]
[1729144721144,14.16,152.78,152.69,4.196]
[1729144721342,14.16,152.73,152.69,2.7643]
[1729144721540,14.16,152.73,152.66,5.18]
[1729144721748,14.16,152.73,152.65,3.29280715]
[1729144721749,14.16,152.73,152.65,6.12880715]
[1729144722048,14.16,152.71,152.65,2.836]
[1729144722249,19.34,152.71,152.65,2.836]
[1729144722549,19.34,152.71,152.65,6.08963107]
[1729144722741,19.34,152.71,152.65,2.836]
[1729144723142,3.2751,152.69,152.65,2.836]
[1729144723340,3.2751,152.69,152.65,6.06342381]
[1729144724945,19.34,152.71,152.65,3.22742381]
[1729144725147,3.2754,152.68,152.63,3.2763]
[1729144725346,3.2754,152.68,152.63,6.60068403]
[1729144726054,19.34,152.71,152.63,3.32438403]
[1729144726349,3.2751,152.69,152.64,3.276]
[1729144726550,3.2751,152.69,152.64,6.60169452]
[1729144727748,19.34,152.71,152.64,3.32569452]
[1729144727948,9.06,152.7,152.64,9.06]
[1729144728149,14.24,152.71,152.65,9.06]
[1729144728349,17.5148,152.71,152.66,3.2755]
[1729144728551,17.5148,152.71,152.66,6.53545646]
[1729144728751,17.5148,152.71,152.66,3.25995646]
[1729144728950,17.5148,152.71,152.66,3.2756]
[1729144729147,17.5148,152.71,152.66,6.62007749]
[1729144729459,17.5148,152.71,152.66,3.2756]
[1729144729754,12.3349,152.7,152.66,3.2756]
[1729144729944,12.3349,152.7,152.66,6.56274734]
[1729144731255,9.06,152.68,152.66,3.28714734]
[1729144731459,9.06,152.67,152.62,9.06]
[1729144731652,9.06,152.67,152.61,11.20625433]
[1729144731948,9.06,152.67,152.61,20.26625433]
[1729144732148,9.06,152.68,152.63,9.06]
[1729144732348,9.06,152.68,152.64,3.2761]
[1729144733650,12.3353,152.68,152.64,3.2761]
[1729144735958,3.2749,152.7,152.66,3.2757]
[1729144736157,5.06,152.71,152.66,3.2757]
[1729144736352,5.06,152.73,152.68,9.06]
[1729144736559,5.06,152.73,152.69,3.2749]
[1729144736959,12.3341,152.74,152.69,3.2749]
[1729144737257,70.72,152.8,152.71,9.06]
[1729144737258,5.06,152.76,152.71,9.06]
[1729144737663,14.12,152.76,152.7,9.06]
[1729144737862,14.12,152.76,152.7,12.35075094]
[1729144738055,3.2738,152.75,152.71,3.2746]
[1729144739454,12.3338,152.75,152.71,3.2746]
[1729144739850,3.2738,152.75,152.71,3.2746]
[1729144740462,14.16,152.75,152.7,3.29075094]
[1729144740664,3.2744,152.72,152.68,3.2752]
[1729144741056,19.22,152.73,152.67,2.776]
[1729144741257,19.22,152.73,152.65,5.06]
[1729144741458,14.16,152.71,152.62,4.075]
[1729144741763,3.2752,152.69,152.65,3.2758]
[1729144742055,14.16,152.71,152.62,9.135]
[1729144742250,3.275,152.7,152.62,9.135]
[1729144743369,3.275,152.7,152.64,3.276]
[1729144743558,14.16,152.71,152.64,3.276]
[1729144743756,3.2751,152.69,152.64,3.276]
[1729144744958,133.09808398,152.81,152.68,14.16]
[1729144745158,3.2737,152.76,152.71,3.2745]
[1729144745457,19.22,152.77,152.71,3.31434198]
[1729144745663,3.2744,152.73,152.69,6.0865]
[1729144746365,3.2744,152.73,152.69,9.44343435]
[1729144746963,3.2744,152.73,152.69,7.99163435]
[1729144748966,3.2748,152.71,152.69,3.35693435]
[1729144749262,14.16,152.8,152.65,5.06]
[1729144749263,5.06,152.72,152.65,5.06]
[1729144750061,3.275,152.7,152.65,5.06]
[1729144751169,14.16,152.71,152.64,1.3784]
[1729144751669,3.2752,152.69,152.64,3.2759]
[1729144756276,3.2752,152.69,152.62,5.06]
[1729144756967,3.2752,152.69,152.64,3.2759]
[1729144759771,3.2752,152.69,152.64,12.3359]
[1729144759976,5.06,152.72,152.67,3.2753]
[1729144759977,3.2746,152.72,152.67,3.2753]
[1729144760371,3.2746,152.72,152.66,9.06]
[1729144760571,3.2746,152.72,152.68,3.2752]
[1729144761377,9.06,152.73,152.69,3.32711464]
[1729144761676,3.2744,152.72,152.69,3.28878534]
[1729144761870,3.2744,152.72,152.65,14.14]
[1729144762072,3.2744,152.72,152.69,3.2749]
[1729144762277,3.2744,152.72,152.69,6.55254691]
[1729144762578,3.2744,152.72,152.69,3.2749]
[1729144762774,3.2743,152.73,152.7,3.2748]
[1729144763174,3.2743,152.73,152.69,3.25111124]
[1729144763375,3.2743,152.73,152.69,3.275]
[1729144763577,3.2743,152.73,152.69,6.54380169]
[1729144770383,3.2744,152.72,152.69,6.54380169]
[1729144770982,15.5584,152.77,152.69,3.26880169]
[1729144771183,128.05184405,152.8,152.7,14.14]
[1729144771373,5.06,152.77,152.7,14.14]
[1729144771578,8.3334,152.77,152.73,3.2741]
[1729144771879,8.3334,152.77,152.73,6.54761306]
[1729144772377,5.06,152.79,152.75,3.2737]
[1729144772584,5.06,152.79,152.72,14.14]
[1729144772784,5.06,152.79,152.73,2.8684]
[1729144773286,3.2732,152.78,152.75,3.2737]
[1729144776182,3.2732,152.78,152.74,3.2738]
[1729144777386,3.2737,152.76,152.73,2.8684]
[1729144777886,3.2738,152.75,152.73,2.8684]
[1729144778788,3.2736,152.76,152.73,2.8684]
[1729144779091,14.14,152.79,152.73,2.8684]
[1729144779792,14.14,152.79,152.72,3.24305416]
[1729144779993,14.14,152.77,152.68,5.06]
[1729144781586,14.14,152.77,152.7,3.2747]
[1729144781587,3.274,152.74,152.7,3.2747]
[1729144781788,3.274,152.74,152.7,15.53323866]
[1729144782085,9.06,152.75,152.7,12.25853866]
[1729144782687,3.2741,152.74,152.7,12.25853866]
[1729144784394,3.2741,152.74,152.7,15.53333866]
[1729144786188,3.2739,152.75,152.7,15.53333866]
[1729144787390,128.05184405,152.8,152.73,9.06]
[1729144787693,14.12,152.77,152.73,9.06]
[1729144788397,14.12,152.77,152.71,9.06]
[1729144789499,3.2737,152.76,152.72,3.2743]
[1729144791495,5.06,152.77,152.73,9.06]
[1729144791802,5.06,152.77,152.73,12.334]
[1729144792300,5.06,152.77,152.73,15.55370635]
[1729144792498,5.06,152.77,152.74,12.3339]
[1729144794291,5.06,152.77,152.74,9.06]
[1729144795403,14.12,152.77,152.73,3.21970635]
[1729144795610,3.274,152.74,152.71,9.06]
[1729144795797,3.274,152.74,152.71,12.28472968]
[1729144796807,3.2742,152.73,152.71,3.22472968]
[1729144797101,9.06,152.74,152.68,12.3352]
[1729144797305,3.2744,152.73,152.68,12.3352]
[1729144798203,3.2744,152.72,152.68,12.3352]
[1729144799799,3.2742,152.73,152.69,3.2749]
[1729144799999,3.2742,152.73,152.69,6.50988192]
[1729144800800,9.06,152.72,152.69,3.23498192]
[1729144800998,9.06,152.72,152.67,2.7753]
[1729144801194,9.06,152.7,152.67,2.7753]
[1729144801406,9.06,152.68,152.62,1.3563]
[1729144801604,9.06,152.66,152.61,3.21245433]
[1729144801802,4.94,152.68,152.6,2.8541]
[1729144801803,12.3363,152.64,152.6,2.8541]
[1729144802104,4.94,152.68,152.61,9.06]
[1729144802308,8.2153,152.68,152.63,12.3362]
[1729144802501,8.2153,152.68,152.63,12.3456321]
[1729144803607,4.94,152.68,152.64,3.2761]
[1729144803805,14.15,152.73,152.63,17.4356321]
[1729144804011,4.94,152.72,152.63,17.4356321]
[1729144804205,4.94,152.72,152.63,22.3756321]
[1729144804410,14.15,152.71,152.63,22.3756321]
[1729144804910,3.2753,152.68,152.64,3.276]
[1729144805208,14.15,152.71,152.63,22.3756321]
[1729144805905,14.15,152.71,152.63,25.6519321]
[1729144806101,14.15,152.71,152.63,22.3756321]
[1729144806500,3.2754,152.68,152.64,3.2761]
[1729144808212,3.2753,152.68,152.64,3.2761]
[1729144810609,3.2753,152.68,152.63,25.6518321]
[1729144812114,3.2758,152.66,152.63,3.2856321]
[1729144812315,4.94,152.68,152.61,4.6329]
[1729144812612,3.2759,152.65,152.61,4.6329]
[1729144812810,3.2759,152.65,152.61,7.98808836]
[1729144813612,3.2762,152.64,152.61,3.35518836]
[1729144813804,3.2762,152.64,152.6,2.8541]
[1729144814207,3.2762,152.64,152.6,6.131]
[1729144814403,3.2762,152.64,152.6,9.36264226]
[1729144815019,3.2765,152.63,152.6,6.08574226]
[1729144815315,14.15,152.63,152.54,1.4212]
[1729144815511,3.2773,152.59,152.54,4.6994]
[1729144815714,14.15,152.63,152.54,1.4212]
[1729144815911,14.15,152.61,152.53,2.6951]
[1729144816115,3.2776,152.58,152.53,2.6951]
[1729144816517,3.2773,152.59,152.54,3.2782]
[1729144817019,4.94,152.64,152.6,3.2769]
[1729144817223,4.94,152.67,152.6,6.56379523]
[1729144817415,14.15,152.69,152.59,16.8922]
[1729144817608,3.2759,152.66,152.61,3.2767]
[1729144817811,4.94,152.68,152.61,6.5413023]
[1729144818311,3.2761,152.65,152.61,3.2646023]
[1729144818515,3.2761,152.65,152.6,3.2769]
[1729144819012,3.2761,152.65,152.6,6.60674189]
[1729144819217,3.2761,152.65,152.6,3.2769]
[1729144819717,3.2761,152.65,152.6,6.57692195]
[1729144825016,3.2758,152.66,152.6,6.57692195]
[1729144825216,4.94,152.68,152.6,6.57692195]
[1729144825723,3.276,152.65,152.6,6.57692195]
[1729144827521,3.2764,152.63,152.6,3.30002195]
[1729144827723,4.94,152.68,152.59,16.8922]
[1729144828319,4.94,152.68,152.59,20.23515173]
[1729144828619,4.96,152.69,152.61,14.15]
[1729144829320,3.2753,152.68,152.64,3.276]
[1729144829814,3.2753,152.68,152.65,3.2759]
[1729144830321,3.2753,152.68,152.61,14.15]
[1729144830525,3.2753,152.68,152.64,3.276]
[1729144831116,3.2758,152.66,152.63,3.2763]
[1729144831323,19.11,152.69,152.59,20.23515173]
[1729144831521,19.11,152.69,152.59,25.19515173]
[1729144831729,3.276,152.65,152.61,3.2766]
[1729144832625,3.2763,152.64,152.6,3.2769]
[1729144833024,3.2763,152.64,152.59,20.23515173]
[1729144833220,14.15,152.67,152.59,6.08515173]
[1729144833929,3.2765,152.63,152.59,6.08515173]
[1729144834325,3.2767,152.62,152.59,3.34295173]
[1729144834525,14.15,152.63,152.55,3.2779]
[1729144834824,14.15,152.63,152.54,4.96]
[1729144835625,3.2771,152.6,152.56,3.2778]
[1729144835830,4.96,152.65,152.54,4.96]
[1729144835831,14.15,152.64,152.55,14.15]
[1729144836029,3.2763,152.64,152.59,3.2771]
[1729144836230,4.96,152.64,152.59,3.22472259]
[1729144836426,4.96,152.64,152.58,14.15]
[1729144836931,3.2765,152.63,152.58,20.66874119]
[1729144837126,14.15,152.66,152.58,20.66874119]
[1729144837127,4.96,152.66,152.58,17.39144119]
[1729144837321,3.276,152.65,152.6,3.2768]
[1729144837632,4.96,152.66,152.6,3.2768]
[1729144838428,3.2762,152.64,152.6,3.2768]
[1729144839829,3.2767,152.62,152.59,2.883]
[1729144840634,19.11,152.66,152.59,2.883]
[1729144841235,3.276,152.65,152.61,3.2768]
[1729144844435,3.2757,152.66,152.62,3.2765]
[1729144845337,3.2759,152.65,152.61,3.2767]
[1729144845938,4.96,152.68,152.61,3.2767]
[1729144846237,4.96,152.68,152.6,14.15]
[1729144846834,4.96,152.68,152.62,3.2764]
[1729144846835,3.2756,152.67,152.62,3.2764]
[1729144847234,4.96,152.68,152.62,3.2764]
[1729144848331,4.96,152.68,152.59,9.2898]
[1729144848726,4.96,152.68,152.6,14.15]
[1729144848935,3.2758,152.66,152.62,3.2764]
[1729144851848,14.15,152.73,152.64,14.15]
[1729144852140,125.28611783,152.75,152.66,14.15]
[1729144852344,3.2742,152.74,152.68,14.15]
[1729144852940,125.28611783,152.75,152.68,14.15]
[1729144852941,125.28611783,152.75,152.68,17.45013564]
[1729144854537,3.2741,152.74,152.7,3.2747]
[1729144854938,3.2746,152.72,152.68,6.57543564]
[1729144855139,139.43611783,152.75,152.68,3.30013564]
[1729144855341,14.15,152.73,152.68,3.30013564]
[1729144855641,4.96,152.72,152.65,2.7572]
[1729144856143,3.2752,152.69,152.65,9.29690017]
[1729144856545,4.96,152.72,152.65,6.02110017]
[1729144857446,3.275,152.7,152.66,3.2757]
[1729144858138,3.275,152.7,152.65,6.02110017]
[1729144858342,4.96,152.72,152.66,14.15]
[1729144858542,130.24611783,152.75,152.66,14.15]
[1729144858744,130.24611783,152.75,152.67,4.96]
[1729144858946,3.2742,152.73,152.69,3.275]
[1729144859648,3.2742,152.73,152.67,4.96]
[1729144859847,3.2742,152.73,152.69,3.2749]
[1729144860244,3.2742,152.73,152.67,4.96]
[1729144860439,3.2746,152.72,152.68,3.2752]
[1729144860646,139.43611783,152.75,152.65,6.02110017]
[1729144860954,14.15,152.73,152.65,10.98110017]
[1729144861753,3.2748,152.71,152.67,3.2753]
[1729144862451,3.275,152.7,152.65,14.25690017]
[1729144862657,3.275,152.7,152.65,10.98110017]
[1729144863450,3.2753,152.68,152.65,10.98110017]
[1729144863948,4.96,152.72,152.65,10.98110017]
[1729144863949,3.2749,152.7,152.65,10.98110017]
[1729144864345,4.96,152.72,152.65,10.98110017]
[1729144864545,14.15,152.71,152.65,3.26390017]
[1729144864849,14.15,152.71,152.6,14.15]
[1729144864850,14.15,152.71,152.62,3.2765]
[1729144865245,14.15,152.71,152.62,6.47430369]
[1729144865444,14.15,152.69,152.62,3.19780369]
[1729144865639,3.2758,152.66,152.61,4.96]
[1729144865844,3.2758,152.66,152.61,8.2767384]
[1729144866051,14.15,152.73,152.62,14.15]
[1729144866255,4.96,152.72,152.62,14.15]
[1729144866451,4.96,152.72,152.64,14.15]
[1729144866751,4.96,152.72,152.65,3.2758]
[1729144867155,3.2752,152.69,152.65,3.2758]
[1729144868150,4.96,152.72,152.66,14.15]
[1729144868355,125.28611783,152.75,152.68,14.15]
[1729144868854,3.2741,152.74,152.7,3.2747]
[1729144869550,128.55991783,152.75,152.71,3.2746]
[1729144869752,128.55991783,152.75,152.71,5.935]
[1729144870342,128.55991783,152.75,152.71,9.2814431]
[1729144870542,3.2737,152.76,152.71,9.2814431]
[1729144871048,4.96,152.78,152.71,9.2814431]
[1729144871244,3.2738,152.75,152.71,9.2814431]
[1729144872751,4.96,152.78,152.71,6.0068431]
[1729144873456,3.274,152.75,152.71,6.0068431]
[1729144873653,4.96,152.78,152.71,6.0068431]
[1729144874056,3.2739,152.75,152.71,9.2814431]
[1729144874653,3.274,152.74,152.71,9.2814431]
[1729144875358,4.96,152.78,152.71,6.0068431]
[1729144875659,3.2739,152.75,152.72,3.2744]
[1729144876265,4.96,152.78,152.71,6.0068431]
[1729144876555,14.15,152.81,152.72,14.15]
[1729144876753,3.2731,152.78,152.74,3.274]
[1729144877062,6.5422,152.88,152.74,14.15]
[1729144877350,6.5422,152.88,152.76,3.2735]
[1729144877351,3.2725,152.81,152.76,3.2735]
[1729144878251,132.98176446,152.85,152.78,3.2729]
[1729144878449,132.98176446,152.85,152.77,19.11]
[1729144878658,132.98176446,152.85,152.78,2.8011]
[1729144878859,3.2722,152.83,152.79,3.2728]
[1729144879259,128.02176446,152.85,152.78,2.8011]
[1729144879657,3.2722,152.83,152.79,3.2728]
[1729144879859,3.2722,152.83,152.79,3.2255271]
[1729144880054,3.2722,152.83,152.78,2.8011]
[1729144880257,128.02176446,152.85,152.78,2.8011]
[1729144880258,3.2726,152.81,152.78,2.8011]
[1729144883865,3.2724,152.82,152.78,2.8011]
[1729144884562,19.11,152.85,152.75,15.5223]
[1729144884767,14.15,152.81,152.72,2.8651]
[1729144885162,3.2735,152.77,152.72,6.1394]
[1729144885361,3.2735,152.77,152.73,14.15]
[1729144886963,3.274,152.74,152.72,6.08528963]
[1729144887860,5.06,152.8,152.72,6.08528963]
[1729144888060,3.2739,152.75,152.72,6.08528963]
[1729144889756,3.2732,152.78,152.72,6.08528963]
[1729144889960,5.06,152.8,152.72,6.08528963]
[1729144890364,3.274,152.75,152.72,6.08528963]
[1729144891672,14.15,152.79,152.69,5.06]
[1729144891864,15.5354,152.79,152.69,8.29149096]
[1729144892169,3.2743,152.73,152.69,11.56649096]
[1729144893463,3.2743,152.73,152.69,8.29149096]
[1729144893975,15.5354,152.79,152.69,8.29149096]
[1729144894563,3.2735,152.76,152.7,3.2748]
[1729144894774,15.5354,152.79,152.7,17.4248]
[1729144895274,3.2741,152.74,152.7,17.4248]
[1729144895962,15.5354,152.79,152.7,17.4248]
[1729144896168,15.5354,152.79,152.7,14.15]
[1729144896674,3.2743,152.73,152.7,14.15]
[1729144896876,3.2743,152.73,152.7,17.4248]
[1729144897665,3.2743,152.73,152.7,14.15]
[1729144899475,15.5354,152.79,152.7,17.4247]
[1729144899780,5.06,152.8,152.72,14.15]
[1729144899970,3.2736,152.76,152.72,14.15]
[1729144900174,3.2736,152.76,152.73,1.4062]
[1729144901583,19.21,152.8,152.71,1.3243]
[1729144901787,3.2742,152.73,152.71,1.3243]
[1729144902290,3.2744,152.72,152.71,1.3243]
[1729144902982,3.2745,152.72,152.69,8.29149096]
[1729144903485,14.15,152.79,152.69,8.29149096]
[1729144903681,3.2743,152.73,152.69,11.56649096]
[1729144904079,3.2743,152.73,152.7,15.5209]
[1729144904779,3.2738,152.75,152.71,3.2745]
[1729144904980,3.2738,152.75,152.71,4.6452]
[1729144905981,14.15,152.8,152.71,1.3707]
[1729144906290,6.5438,152.84,152.72,14.15]
[1729144906291,14.15,152.82,152.72,14.15]
[1729144906479,19.21,152.82,152.74,14.15]
[1729144906783,3.273,152.79,152.76,14.15]
[1729144906986,5.06,152.84,152.76,14.15]
[1729144907180,3.2725,152.81,152.78,14.15]
[1729144907380,3.2725,152.81,152.78,17.49546042]
[1729144907580,5.06,152.84,152.78,17.49546042]
[1729144908387,3.2723,152.82,152.78,20.76846042]
[1729144909077,3.2727,152.8,152.78,17.49546042]
[1729144909285,5.06,152.86,152.78,17.49546042]
[1729144910384,133.04406482,152.88,152.82,14.15]
[1729144910588,127.98406482,152.88,152.82,14.15]
[1729144910788,3.2718,152.85,152.82,14.15]
[1729144911090,127.98406482,152.88,152.82,14.15]
[1729144911484,3.2715,152.86,152.82,17.4222]
[1729144912383,3.2712,152.87,152.83,3.272]
[1729144912886,3.2712,152.87,152.82,14.15]
[1729144913284,5.06,152.9,152.82,14.15]
[1729144913485,5.06,152.9,152.82,17.4221]
[1729144914193,3.2714,152.86,152.82,17.4221]
[1729144917189,3.2713,152.87,152.83,3.272]
[1729144919698,5.04,152.9,152.82,14.15]
[1729144919894,3.2717,152.85,152.82,14.15]
[1729144920893,5.04,152.9,152.82,14.15]
[1729144921093,5.04,152.9,152.82,22.4622]
[1729144921684,3.2714,152.87,152.82,22.4622]
[1729144922497,5.04,152.9,152.82,22.4622]
[1729144922792,5.04,152.9,152.82,19.19]
[1729144923293,5.04,152.9,152.82,22.4621]
[1729144923497,5.04,152.9,152.83,2.7972]
[1729144923694,3.2713,152.87,152.83,6.0692]
[1729144924293,6.3843,152.92,152.84,14.15]
[1729144925000,6.3843,152.92,152.83,2.7972]
[1729144925395,3.2718,152.85,152.82,19.19]
[1729144925593,14.15,152.91,152.82,19.19]
[1729144926092,6.3843,152.92,152.82,19.19]
[1729144926691,3.2717,152.85,152.82,19.19]
[1729144926997,6.3843,152.92,152.84,14.15]
[1729144927697,3.2712,152.88,152.85,3.2715]
[1729144928087,5.04,152.92,152.86,17.4213]
[1729144928289,5.04,152.93,152.86,14.15]
[1729144928690,3.2704,152.91,152.87,3.2711]
[1729144928893,5.04,152.93,152.87,3.2711]
[1729144929598,3.2711,152.88,152.86,3.30574249]
[1729144929797,19.19,152.93,152.85,2.7561]
[1729144929991,5.04,152.93,152.86,3.21413393]
[1729144930192,14.15,152.91,152.82,5.04]
[1729144930495,14.15,152.91,152.79,2.7561]
[1729144930496,14.15,152.89,152.79,16.9061]
[1729144930699,14.15,152.89,152.8,5.04]
[1729144930700,5.04,152.88,152.8,5.04]
[1729144931301,3.2723,152.82,152.79,20.1789]
[1729144931500,14.15,152.86,152.78,3.34546042]
[1729144931802,3.2729,152.8,152.76,5.04]
[1729144932891,3.2729,152.8,152.76,8.3135]
[1729144933297,3.2729,152.8,152.76,5.04]
[1729144935605,3.2729,152.8,152.77,14.15]
[1729144935794,3.2722,152.83,152.79,14.15]
[1729144936201,5.04,152.87,152.79,17.43598674]
[1729144936407,5.04,152.87,152.79,20.70878674]
[1729144937005,3.272,152.84,152.79,20.70878674]
[1729144938799,3.272,152.84,152.79,6.55878674]
[1729144938999,3.2722,152.83,152.79,20.70878674]
[1729144939300,5.04,152.87,152.81,14.15]
[1729144939806,3.2718,152.85,152.81,17.4223]
[1729144940003,3.2718,152.85,152.81,23.41277885]
[1729144940206,14.15,152.91,152.81,20.14047885]
[1729144940401,3.2715,152.86,152.82,3.2722]
[1729144941304,1.3411,152.92,152.83,14.15]
[1729144941505,3.2711,152.88,152.85,14.15]
[1729144941708,127.954658,152.93,152.87,14.15]
[1729144942098,3.2707,152.9,152.87,14.15]
[1729144942299,14.15,152.96,152.87,14.15]
[1729144942499,5.04,152.95,152.87,14.15]
[1729144943010,3.2705,152.91,152.88,3.2709]
[1729144943508,3.2705,152.91,152.87,17.4211]
[1729144945309,3.2705,152.91,152.87,14.15]
[1729144945813,3.2705,152.91,152.87,16.9856]
[1729144946012,3.2706,152.9,152.87,16.9856]
[1729144946512,3.2702,152.92,152.89,14.15]
[1729144946813,3.2702,152.92,152.89,17.46066007]
[1729144948611,3.2696,152.95,152.91,3.2703]
[1729144948908,4.98,152.97,152.92,14.15]
[1729144949423,3.2696,152.95,152.92,14.15]
[1729144949608,41.21318936,153.01,152.92,19.13]
[1729144950210,3.2691,152.97,152.92,19.13]
[1729144950407,41.21318936,153.01,152.92,19.13]
[1729144951011,41.21318936,153.01,152.94,17.4196]
[1729144951208,41.21318936,153.01,152.94,14.15]
[1729144951508,3.2693,152.97,152.94,14.15]
[1729144952315,41.21318936,153.01,152.94,14.15]
[1729144952612,3.2693,152.96,152.94,14.15]
[1729144952814,4.98,153.01,152.94,14.15]
[1729144953009,14.15,152.99,152.91,4.98]
[1729144953415,19.13,153.01,152.91,8.2502]
[1729144953716,3.2696,152.95,152.92,14.15]
[1729144954007,3.2694,152.96,152.93,3.2699]
[1729144954212,3.2694,152.96,152.92,14.15]
[1729144954607,3.2694,152.96,152.92,17.42]
[1729144954809,19.13,153.01,152.92,14.15]
[1729144955009,3.2697,152.94,152.92,14.15]
[1729144957118,3.2696,152.95,152.92,14.15]
[1729144957319,19.13,153.01,152.92,14.15]
[1729144958513,3.2697,152.95,152.92,14.15]
[1729144958712,19.13,153.01,152.92,14.15]
[1729144960418,3.2697,152.94,152.92,14.15]
[1729144962418,19.13,153.01,152.92,14.15]
[1729144962620,3.2699,152.93,152.92,14.15]
[1729144962821,19.13,153.01,152.92,14.15]
[1729144963318,3.2698,152.94,152.92,14.15]